Cogmind - Beta 11.1 *** ADVENTURER MODE // 2022.08.16 @ 19:50:36 Player: Nagash Result: Destroyed by Y-45 Defender with Beam Rifle Performance ------------- Evolutions (1) 500 Regions Visited (2) 400 Robots Destroyed (22) 110 Value Destroyed (631) 631 Prototype IDs (0) 0 Alien Tech Used (0) 0 Bonus (0) 0 TOTAL SCORE: 1641 Bonus ------- None Cogmind --------- Core Integrity 0/400 Matter 220/300 Energy 68/100 System Corruption 0% Temperature Cool (9) Movement Walking (130) Location -9/Materials Parts ------- > --- POWER (1) -------- (None) > --- PROPULSION (3) --- Titanium Leg Titanium Leg Titanium Leg > --- UTILITY (3) ------ Terrain Scan Processor > --- WEAPON (2) ------- Beam Cannon Heavy Hammer > --- INVENTORY (5) ---- Aluminum Leg Titanium Leg Large Matter Pod (150) Visual Processing Unit Weapon Shielding Peak State ------------ > --- POWER ------------ (None) > --- PROPULSION ------- Titanium Leg Titanium Leg Titanium Leg > --- UTILITY ---------- Medium Storage Unit Terrain Scan Processor > --- WEAPON ----------- Pulse Rifle Pulse Rifle > --- INVENTORY -------- Aluminum Leg Titanium Leg Titanium Leg Titanium Leg Titanium Leg Large Matter Pod Visual Processing Unit Weapon Shielding [Rating: 19] Favorites ----------- Power Ion Engine Engine Ion Engine Propulsion Compact Wheel Leg Titanium Leg Wheel Compact Wheel Utility Small Storage Unit Device Structural Scanner Storage Small Storage Unit Processor Terrain Scan Processor Protection Propulsion Shielding Weapon Assault Rifle Energy Gun EM Pulse Gun Energy Cannon Beam Cannon Ballistic Gun Assault Rifle Ballistic Cannon Improved Light Cannon Impact Weapon Heavy Hammer Build | -11 -10 -9 ------- Run | Scr Mat Mat Slots Evolved 2 | . . 2 Power . | . . . Propulsion 1 | . . 1 Utility 1 | . . 1 Weapon . | . . . Parts Attached 30 | 7 4 19 Power 2 | 1 1 . Engine 2 | 1 1 . Core . | . . . Reactor . | . . . Propulsion 11 | 2 . 9 Treads . | . . . Leg 9 | . . 9 Wheel 2 | 2 . . Hover . | . . . Flight . | . . . Utility 6 | 1 1 4 Device 2 | . . 2 Storage 2 | 1 . 1 Processor 1 | . 1 . Hackware . | . . . Protection 1 | . . 1 Artifact . | . . . Weapon 11 | 3 2 6 Energy Gun 5 | 2 . 3 Energy Cannon 1 | . . 1 Ballistic Gun 3 | 1 2 . Ballistic Cannon 1 | . . 1 Launcher . | . . . Special Weapon . | . . . Impact Weapon 1 | . . 1 Slashing Weapon . | . . . Piercing Weapon . | . . . Special Melee Weapon . | . . . Unidentified Prototypes . | . . . Parts Lost 15 | . 1 14 Power 1 | . . 1 Propulsion 5 | . . 5 Utility 3 | . . 3 Weapon 6 | . 1 5 Highest Loss Streak 7 | . 1 7 To Critical Strikes . | . . . Average Slot Usage (%) 81 | . 90 72 Engine 9 | . 14 4 Leg 10 | . . 22 Wheel 16 | . 28 5 Device 3 | . . 6 Storage 11 | . 14 8 Processor 8 | . 6 11 Energy Gun 4 | . 7 1 Ballistic Gun 13 | . 19 6 Ballistic Cannon 2 | . . 5 Naked Turns . | . . . Heaviest Build 22 | 12 14 22 Greatest Support 51 | 32 32 51 Greatest Overweight (x) 5 | . . 5 Average Overweight (x) . | . . . Largest Inventory Capacity 10 | 8 8 10 Average Capacity 8 | 7 8 8 Most Carried 10 | 4 8 10 Average Carried 6 | 1 6 6 Final Capacity 8 | 8 8 5 Final Carried 8 | 4 8 5 Class Distribution -------------------- 89% | Mutant 10% | Scavenger-Mutant Dominant Class ---------------- Mutant | -10/Materials Mutant | -9/Materials Resources | -11 -10 -9 ----------- Run | Scr Mat Mat Matter Collected 711 | 238 268 205 Remotely . | . . . Salvage Created 647 | . 252 395 Parts 34 | . 15 19 Haulers Intercepted . | . . . Recyclers Shooed . | . . . Parts Field Recycled . | . . . Retrieved Matter . | . . . Parts Self-Destructed . | . . . Prevented . | . . . Kills | -11 -10 -9 ------- Run | Scr Mat Mat Combat Hostiles Destroyed 20 | . 8 12 Guns 10 | . 6 4 Cannons 8 | . . 8 AOE 2 | . 2 . Classes Destroyed 3 | . 3 . Watcher 2 | . 2 . Swarmer 5 | . 5 . Grunt 15 | . 3 12 Best Kill Streak 6 | . 5 6 Combat Bots Only 6 | . 5 6 Max Kills in Single Turn 2 | . 2 1 Gunslinging . | . . . Exploded 1 | . 1 . Melee . | . . . Uniques/NPCs Destroyed . | . . . Combat | -11 -10 -9 -------- Run | Scr Mat Mat Damage Taken 2276 | . 200 2076 Core 500 | . 91 409 Absorbed by Shields . | . . . Redirected to Shielding 51 | . . 51 Core Remaining (%) 81 | 100 63 . Volleys Fired 50 | . 17 33 Largest 2 | . 2 2 Hottest 126 | . 60 126 Shots Fired 84 | . 27 57 Gun 52 | . 27 25 Cannon 32 | . . 32 Launcher . | . . . Special . | . . . Kinetic 66 | . 17 49 Thermal 8 | . . 8 Explosive . | . . . Electromagnetic 10 | . 10 . Robot Hit Streak 34 | . 10 34 Robot Miss Streak 1 | . 1 1 Penetration Max . | . . . Secondary Targets 3 | . 2 1 Max Gunslinging Chain 1 | . 1 1 Shots Hit Robots 75 | . 23 52 Core Hits 29 | . 9 20 Critical Kills . | . . . Critical Parts Destroyed 1 | . 1 . Critical Strikes 2 | . 1 1 Destroy 1 | . 1 . Blast 1 | . . 1 Melee Attacks 1 | . . 1 Impact 1 | . . 1 Slashing . | . . . Piercing . | . . . Sneak Attacks . | . . . Combat Hostiles . | . . . Follow-up Attacks . | . . . Damage Inflicted 1350 | . 473 877 Guns 624 | . 310 314 Cannons 545 | . . 545 Explosions 163 | . 163 . Melee 18 | . . 18 Ramming . | . . . Kinetic 907 | . 169 738 Thermal 284 | . 163 121 Explosive . | . . . Electromagnetic 141 | . 141 . Impact 18 | . . 18 Slashing . | . . . Piercing . | . . . Highest Corruption 1 | . 1 . Average Corruption 1 | . 1 . Corruption Purged . | . . . Corruption Blocked . | . . . Effects 2 | . 2 . Energy Discharges 1 | . 1 . Data Loss (major) 1 | . 1 . Overload Shots . | . . . Overflow Damage 1 | . 1 . Projectiles . | . . . Explosions 1 | . 1 . Melee . | . . . Knockbacks 6 | . . 6 Impact . | . . . Kinetic 6 | . . 6 Secondary . | . . . Self-Inflicted Damage 52 | . 52 . Shots 2 | . 2 . Rammed 2 | . . 2 Targets Rammed 2 | . . 2 Kicked . | . . . Crushed . | . . . Highest Temperature 84 | . 18 84 Average Temperature 23 | . 13 27 Received Heat Transfer 1293 | . 12 1281 Siege Activations . | . . . Robots Corrupted 1 | . 1 . Combat Hostiles . | . . . Parts Fried 4 | . 4 . Impact Corruptions . | . . . Robots Melted . | . . . Combat Hostiles . | . . . Parts Melted . | . . . Heat Transferred 409 | . 150 259 Parts Sabotaged . | . . . Parts Stolen . | . . . Parts Stripped . | . . . Power Chain Reactions 2 | . 2 . Missiles Intercepted . | . . . Alert | -11 -10 -9 ------- Run | Scr Mat Mat Peak Influence 236 | . 236 210 Initial 12 | . . 12 Average 84 | . 72 105 Maximum Alert Level 1 | . 1 1 Low Security (%) 84 | 100 82 85 Level 1 15 | . 17 14 Level 2 . | . . . Level 3 . | . . . Level 4 . | . . . Level 5 . | . . . High Security . | . . . Max Security . | . . . Squads Dispatched 1 | . 1 . Investigation 1 | . 1 . Extermination . | . . . Reinforcement . | . . . Assault . | . . . Garrison . | . . . Intercept . | . . . Searches Triggered . | . . . Construction Impeded . | . . . Haulers Reinforced . | . . . Active Scanning Responses . | . . . Cargo Convoy Interrupts . | . . . Stealth | -11 -10 -9 --------- Run | Scr Mat Mat Distress Signals 1 | . . 1 Communications Jammed . | . . . Distress Signals . | . . . Times Spotted 34 | . 11 23 Peak Tracking Total 11 | . 5 11 Tactical Retreats 1 | . . 1 Traps | -11 -10 -9 ------- Run | Scr Mat Mat Traps Triggered 3 | . 2 1 Indirectly . | . . . Trap Hack Attempts . | . . . Triggered . | . . . Disarmed . | . . . Reprogrammed . | . . . Reused . | . . . Traps Extracted . | . . . Installed . | . . . Triggered 1 | . 1 . Machines | -11 -10 -9 ---------- Run | Scr Mat Mat Machines Disabled . | . . . Max in Single Turn . | . . . Machines Sabotaged . | . . . Garrisons Compromised . | . . . Overloaded Fab Kills . | . . . Hacking | -11 -10 -9 --------- Run | Scr Mat Mat Machines Accessed . | . . . Terminals . | . . . Fabricators . | . . . Repair Stations . | . . . Recycling Units . | . . . Scanalyzers . | . . . Garrison Access . | . . . Total Hacks . | . . . Successful . | . . . Failed . | . . . Catastrophic . | . . . Database Lockouts . | . . . Manual . | . . . Terminals . | . . . Fabricators . | . . . Repair Stations . | . . . Recycling Units . | . . . Scanalyzers . | . . . Garrison Access . | . . . Terminal Hacks . | . . . Fabricator Hacks . | . . . Repair Station Hacks . | . . . Recycling Unit Hacks . | . . . Scanalyzer . | . . . Garrison Access Hacks . | . . . Unauthorized Hacks . | . . . Terminals . | . . . Fabricators . | . . . Repair Stations . | . . . Recycling Units . | . . . Scanalyzers . | . . . Garrison Access . | . . . Data Cores Recovered . | . . . Used . | . . . Hacking Detections . | . . . Full Trace Events . | . . . Feedback Events . | . . . Feedback Blocked . | . . . Robot Schematics Acquired . | . . . Robots Built . | . . . Authchips . | . . . Time . | . . . Total Robot Build Rating . | . . . Part Schematics Acquired . | . . . Parts Built . | . . . Authchips . | . . . Time . | . . . Total Part Build Rating . | . . . Parts Repaired . | . . . Time . | . . . Parts Recycled . | . . . Recycled Matter . | . . . Retrieved Matter . | . . . Retrieved Components . | . . . Parts Scanalyzed . | . . . Part Schematics Acquired . | . . . Parts Damaged . | . . . Bothacking | -11 -10 -9 ------------ Run | Scr Mat Mat Used RIF Installer . | . . . Robots Hacked . | . . . Non-combat . | . . . Combat . | . . . Robot Hacks Applied . | . . . Relay Couplers Released . | . . . Fabnet Peak Effective % . | . . . Robots Rewired . | . . . Allies Hacked . | . . . Hacks Repelled . | . . . Allies | -11 -10 -9 -------- Run | Scr Mat Mat Total Allies . | . . . Largest Group . | . . . Highest-Rated Group . | . . . Highest-Rated Ally . | . . . Total Orders . | . . . Ally Attacks . | . . . Total Damage . | . . . Kills . | . . . Allies Corrupted . | . . . Allies Melted . | . . . Intel | -11 -10 -9 ------- Run | Scr Mat Mat Robot Analysis Total . | . . . Derelict Logs Recovered . | . . . Drone Launches . | . . . Drone Recoveries . | . . . Exploration | -11 -10 -9 ------------- Run | Scr Mat Mat Turns Passed 1157 | 53 559 545 Spaces Moved 767 | 38 400 329 Core 6 | 1 . 5 Treads . | . . . Legs 249 | . . 249 Wheels 512 | 37 400 75 Hover . | . . . Flight . | . . . Fastest Speed 50 | 50 100 100 Average Speed 109 | 98 100 121 Slowest Speed 300 | 100 100 300 Overloaded Moves . | . . . Propulsion Burnouts . | . . . Robots Hopped . | . . . Cave-ins Triggered . | . . . Exploration Rate (%) 30 | 3 52 35 Regions Visited 2 Branch Regions . Pre-discovered Areas . | . . . Known Exits Taken . | . . . Unknown Exits Taken 2 | 1 1 . Scrap Searched . | . . . Spaces Dug . | . . . Terrain Destroyed 9 | . 9 . Melee . | . . . Projectile . | . . . AOE 9 | . 9 . Terrain Rammed . | . . . Walls Destroyed . | . . . Machines Disabled . | . . . Actions | -11 -10 -9 --------- Run | Scr Mat Mat Total 994 | 49 533 412 Wait 110 | 1 98 11 Move 765 | 37 399 329 Hop . | . . . Pick Up 19 | 4 9 6 Fast Attach 19 | 6 2 11 Attach 5 | . . 5 Detach 1 | . . 1 Swap 6 | 1 2 3 Drop 16 | . 6 10 Fire 50 | . 17 33 Melee 1 | . . 1 Ram 2 | . . 2 Kick . | . . . Crush . | . . . Escape Stasis . | . . . Rewire . | . . . Trap . | . . . Miscellaneous . | . . . Route ------- -11/Scrapyard -10/Materials (discovered 2 exits: [*Mat] / [*Min]) -9/Materials History --------- Turn | Location | Event 22 | -11/Scrapyard | Discovered new exit (range 16) 54 | -11/Scrapyard | Entered Materials 177 | -10/Materials | Discovered new exit (range 11) 307 | -10/Materials | Build established: Mutant 393 | -10/Materials | Discovered new exit (range 10) 613 | -10/Materials | Entered another Materials area 613 | -9/Materials | Evolved 2 slots: Propulsion x1, Utility x1 935 | -9/Materials | Lost 3 parts (1n1u1w) 996 | -9/Materials | Core integrity fell below 50% 1005 | -9/Materials | Core integrity fell below 20% 1032 | -9/Materials | Lost 7 parts (3n1u3w) 1158 | -9/Materials | Destroyed by Y-45 Defender with Beam Rifle Last Messages --------------- 00995_ Critical hit (Burn: +37). 00997_ G-34 Mercenary destroyed. 00997_ Pulse Rifle destroyed. 00998_ Slammed into Y-45 Defender. 01000_ Acquired 1 matter. 01000_ Critical hit (Burn: +37). 01001_ Titanium Leg destroyed. 01008_ Critical hit (Burn: +37). 01020_ Dropped Med. Storage Unit. 01039_ Pulse Rifle destroyed. 01097_ Critical hit (Burn: +37). 01097_ W-16 Scout destroyed. 01111_ K-01 Serf collects debris. 01118_ Triggered Shock Trap. 01118_ The floor emits a surge of raw power. 01133_ Acquired Hvy. Hammer. 01139_ Acquired Beam Cannon. 01142_ G-34 Mercenary destroyed. 01147_ Acquired Tractor Beam. 01153_ Tractor Beam destroyed. Map ----- +----------------------------------------------------+ | | | | | | | | | | | | | | | | | ?????????????????????????????????????????????????? | | ??????????????????????????????????????????????###? | | ?????????????????????????????????????????????? ? | | ???????????????????????????????##########????? ? | | ???????????????????????????????# #????? ? | | ???????????????????????????????# #????? ? | | ???????????????????????????????# #????? ? | | ???????????????????????????????# #????? ? | | ???????????????????????????????# #????? ? | | ???????????????????????????????# #????? ? | | ??????????????????????########## ??????#+#? | | ??????????????????????# # ???????# #? | | ??????????????????????# # ????????# #? | | ??????????????????????# =#+##+########### ## | | ??????????????????????# *%# # | | ??????????????????????# %Y/ # | | ??????????????????????# gY# | | ??????????????????????# @b ############### | | ??????????????????????# #?????????????# # | | ??????????????????????# #?????????????# # | | ??????????????????????##########?????????????# # | | ???????????????????????????????????????????#?# # | | ???????????????????????????????????????????? # # | | ???????????????????????????????????????????? # # | | ?????????????????????????????????????????????+ # | | ?????????????????????????????????????????????# # | | ?????????????????????????????????????????????# # | | ?????????????????????????????????????????????# # | | ?????????????????????????????????????????????#%= | | ???????????????????????????????????????? ""??#= | | ???????????????????????????????????????? """ # | | ???????????????????????????????????????? """ + | | ??????????????????????????????????????# # | | ?????????????????????????????????????????? # | | ?????????????????????????????????????????###?# # | | ?????????????????????????????????????????????# # | | ?????????????????????????????????????????????# # | | ?????????????????????????????????????????????# # | | ???????????????????????????????????????????? + # | | ??????????????????????????????????????????? # # | | ?????????????????????????????????????????? # # | | ?????????????????????????????????????????##/?# # | +----------------------------------------------------+ Best States ------------- Heat Dissipation 28 Energy Generation 10 Energy Capacity 250 Matter Stores 300 Matter Capacity 300 Sight Range 16 Terrain Scan Density 85 Resistance: KI 20 Resistance: TH 20 Resistance: EX 20 Resistance: EM 20 Resistance: I 20 Resistance: S 20 Resistance: P 20 Propulsion Shielding 33 Evasion (%) 55 Offensive Hacking 10 Item Schematics ----------------- None Robot Schematics ------------------ None Fabricated ------------ Nothing Alien Tech Used ----------------- None Achievements -------------- None Challenges ------------ None Game ------ Seed FortressXenonAccelerator Manual? 0 Play Time 00:16:26 Cumulative 74.3 hours Start 2022.08.16 @ 17:47:31 End 2022.08.16 @ 19:50:36 Sessions 1 Manual Loads 0 Difficulty Adventurer Special Mode None Game No. 53 Rogue 32 Adventurer 21 Explorer 0 Win Type - Total 0 Types 0/0/0/0/0/0/0/0/0 Lore% 16 Gallery% 36 Achievement% 18 Wizard Run 0 Options --------- ASCII 0 Keyboard 0 Movement Numpad Keybinds 0 Fullscreen 1 Font 24/Crisp Map View 76x50 Tactical HUD 1 Map Filters NONE Filters NONE Steam 1 RUN: 7df95b4f-62af-456b-b7f0-b5140ddcded4